bitfinex-derivatives/quotes_ETHF0:USTF0_20210705
["timestamp","ask_amount","ask_price","bid_price","bid_amount"]
[1625444076260,4.41054,2315.2,2315.1,5.64087]
[1625444076814,4.41054,2315.2,2315.1,3.4356]
[1625444076912,4.41054,2315.2,2314.9,2.20527]
[1625444080517,7.20374,2315.2,2314.9,2.20527]
[1625444080773,8.06974,2315.2,2314.9,2.20527]
[1625444081072,7.20374,2315.2,2314.9,2.20527]
[1625444081173,7.20374,2315.2,2314.5,2.20527]
[1625444081572,7.20374,2315.2,2313.7,1.0]
[1625444081675,2.20527,2314.3,2314.1,2.20527]
[1625444090313,1.0,2315.5,2314.1,2.20527]
[1625444090395,0.8743,2315.9,2314.1,5.26567]
[1625444090496,3.61152185,2316.5,2314.1,5.26567]
[1625444090598,3.61152185,2316.5,2314.1,6.26567]
[1625444090699,13.7772,2316.4,2314.2,15.731246]
[1625444090799,13.7772,2316.4,2314.2,16.731246]
[1625444091504,1.0,2316.3,2314.2,16.731246]
[1625444091603,1.0,2316.3,2314.2,15.731246]
[1625444091703,2.20527,2315.7,2315.6,2.20527]
[1625444091803,3.05767,2315.7,2315.6,4.73957]
[1625444092103,0.8524,2315.7,2315.6,4.73957]
[1625444093658,0.8524,2315.7,2315.6,2.5343]
[1625444093758,3.05767,2315.7,2315.6,2.5343]
[1625444094159,2.20527,2315.7,2315.6,2.5343]
[1625444095712,2.20527,2315.7,2315.6,4.73957]
[1625444097767,2.20527,2315.7,2315.6,2.5343]
[1625444097868,2.20527,2315.7,2315.1,2.20527]
[1625444099782,4.41054,2315.2,2315.1,2.20527]
[1625444100097,4.41054,2315.2,2313.8,15.9824]
[1625444100186,4.41054,2315.2,2313.8,14.9824]
[1625444101740,2.20527,2314.6,2314.4,2.20527]
[1625444103241,1.0,2315.7,2314.4,2.20527]
[1625444103342,0.8732,2316.6,2314.4,5.23677]
[1625444103442,0.8732,2316.6,2314.5,15.570575]
[1625444103745,2.20527,2315.5,2315.2,2.20527]
[1625444105747,2.20527,2315.5,2315.3,2.20527]
[1625444105847,2.20527,2315.5,2315.3,4.51137]
[1625444109050,2.20527,2315.5,2315.3,2.3061]
[1625444109852,2.20527,2315.5,2315.3,4.51137]
[1625444109955,1.0,2316.5,2315.3,4.51137]
[1625444110055,3.51367596,2317.1,2315.3,4.51137]
[1625444110154,2.51367596,2317.1,2315.3,4.51137]
[1625444110312,4.759,2317.0,2315.3,4.51137]
[1625444110412,4.759,2317.0,2315.4,15.656574]
[1625444110563,4.759,2317.0,2315.4,57.382674]
[1625444111169,1.0,2317.4,2315.4,57.382674]
[1625444111880,1.0,2317.4,2316.8,2.20527]
[1625444111881,2.20527,2317.3,2316.8,2.20527]
[1625444113579,2.20527,2317.3,2316.8,4.94187]
[1625444113879,2.20527,2317.3,2317.2,2.20527]
[1625444118659,2.7682961,2318.3,2317.2,2.20527]
[1625444118759,16.94664994,2318.5,2317.2,2.20527]
[1625444118760,14.4201,2318.5,2317.2,2.20527]
[1625444119163,6.52926024,2318.7,2317.2,2.20527]
[1625444119661,4.759,2318.7,2317.3,15.69628]
[1625444119759,4.759,2318.7,2317.3,18.95068]
[1625444119871,4.759,2318.7,2318.6,2.20527]
[1625444119959,4.759,2318.7,2317.3,19.95068]
[1625444120080,2.20527,2318.8,2317.3,18.95068]
[1625444120208,2.6132,2318.7,2316.4,1.0]
[1625444120286,2.6132,2318.7,2315.8,1.77372742]
[1625444120372,2.6132,2318.7,2316.1,0.17778502]
[1625444120664,40.7444,2317.1,2316.1,0.17778502]
[1625444120771,40.7444,2317.1,2315.8,15.97092742]
[1625444120868,43.4612,2317.1,2316.2,15.704152]
[1625444121162,43.4612,2317.1,2316.1,1.77332854]
[1625444121784,43.4612,2317.1,2315.8,17.49052443]
[1625444121785,43.4612,2317.1,2315.8,14.1972]
[1625444121877,4.41054,2315.9,2315.8,14.1972]
[1625444121978,7.11774,2315.9,2315.8,14.1972]
[1625444122182,7.11774,2315.9,2315.7,2.20527]
[1625444122576,58.54244,2315.9,2315.7,2.20527]
[1625444124179,7.11774,2315.9,2315.7,2.20527]
[1625444125132,7.11774,2315.9,2315.4,2.20527]
[1625444125235,7.11774,2315.9,2314.5,1.77496838]
[1625444125433,7.11774,2315.9,2314.2,1.77514404]
[1625444125635,50.9312,2315.5,2314.2,1.77514404]
[1625444125836,50.9312,2315.5,2314.0,16.50047634]
[1625444125935,5.49607,2315.3,2314.9,2.20527]
[1625444127641,5.49607,2315.3,2314.1,1.7755213]
[1625444127792,5.49607,2315.3,2313.8,1.77576018]
[1625444127894,2.20527,2314.4,2314.2,2.20527]
[1625444129950,2.20527,2314.3,2314.2,2.20527]
[1625444132458,2.20527,2314.3,2314.0,2.20527]
[1625444133209,2.20527,2314.3,2313.6,1.77600941]
[1625444133913,2.20527,2314.3,2313.7,15.653736]
[1625444134014,2.20527,2314.3,2313.8,2.20527]
[1625444134312,2.20527,2314.3,2313.9,15.563108]
[1625444136018,2.20527,2314.0,2313.8,2.20527]
[1625444138034,2.20527,2313.9,2313.5,2.20527]
[1625444139991,2.20527,2313.6,2313.5,2.20527]
[1625444144252,2.20527,2313.6,2313.1,2.20527]
[1625444145452,38.6052,2313.3,2313.1,2.20527]
[1625444146005,2.20527,2313.2,2313.1,2.20527]
[1625444146704,2.20527,2313.2,2312.6,3.9830237]
[1625444146955,2.20527,2313.2,2312.8,1.77842101]
[1625444147358,2.20527,2313.2,2312.6,5.14087]
[1625444147756,2.20527,2313.6,2312.8,1.77792733]
[1625444148058,2.20527,2313.9,2313.5,4.41054]
[1625444148256,2.20527,2313.9,2313.5,7.05794]
[1625444148359,2.20527,2313.9,2313.6,15.773114]
[1625444148758,2.20527,2314.1,2313.6,15.773114]
[1625444149459,2.20527,2314.1,2313.5,4.85267]
[1625444149658,2.20527,2314.1,2313.5,2.20527]
[1625444150059,4.41054,2314.1,2313.5,2.20527]
[1625444152062,2.20527,2313.7,2313.5,2.20527]
[1625444152564,2.20527,2313.7,2313.1,1.77809906]
[1625444152762,2.20527,2313.7,2313.0,3.98326326]
[1625444153164,2.20527,2313.7,2313.1,15.698591]
[1625444153366,2.20527,2314.1,2313.1,15.698591]
[1625444154070,2.20527,2313.7,2313.1,15.698591]
[1625444154672,2.20527,2314.1,2313.1,15.698591]
[1625444154775,1.0,2314.8,2313.1,18.916891]
[1625444154972,1.0,2314.8,2313.4,1.77761527]
[1625444155072,1.1,2314.9,2313.4,1.77761527]
[1625444155271,1.1,2314.9,2313.5,15.603114]
[1625444156083,2.20527,2314.4,2314.2,2.20527]
[1625444156173,2.20527,2314.4,2313.5,15.603114]
[1625444156373,2.20527,2314.4,2313.4,1.77761527]
[1625444156630,2.20527,2314.4,2313.5,1.7776304]
[1625444156827,2.20527,2314.4,2313.5,17.3861264]
[1625444157025,2.20527,2314.4,2313.6,1.77743155]
[1625444157323,2.20527,2314.4,2313.7,15.695643]
[1625444157677,2.20527,2314.4,2313.7,18.406843]
[1625444158077,2.20527,2314.4,2314.2,2.20527]
[1625444158177,2.20527,2314.4,2314.0,2.20527]
[1625444158879,2.20527,2314.4,2314.1,15.779072]
[1625444160081,2.20527,2314.3,2314.1,15.779072]
[1625444160637,2.20527,2314.3,2314.0,2.20527]
[1625444162242,2.20527,2314.3,2313.5,1.82752946]
[1625444162749,2.20527,2314.3,2313.5,0.05]
[1625444162847,2.20527,2314.3,2313.6,15.66458]
[1625444162947,2.20527,2314.3,2313.6,18.52228]
[1625444163803,2.20527,2314.4,2313.6,18.52228]
[1625444164104,2.20527,2314.4,2314.2,2.20527]
[1625444164202,2.20527,2314.4,2314.2,4.49747]
[1625444167009,1.0,2315.4,2314.2,4.49747]
[1625444167113,14.2155,2315.7,2314.2,4.49747]
[1625444167313,14.2155,2315.7,2314.3,15.677677]
[1625444167411,5.8658,2316.6,2314.3,15.677677]
[1625444167710,19.9791,2316.6,2314.3,15.677677]
[1625444168065,1.1,2316.3,2314.3,15.677677]
[1625444168164,2.20527,2314.9,2314.3,15.677677]
[1625444169468,2.20527,2315.1,2314.3,15.677677]
[1625444170217,2.20527,2315.1,2314.7,2.20527]
[1625444171774,2.20527,2315.1,2314.7,4.87307]
[1625444172174,2.20527,2314.8,2314.7,4.87307]
[1625444172894,0.8513,2315.9,2314.7,4.87307]
[1625444173028,1.0,2316.5,2314.7,4.87307]
[1625444173142,14.1133,2316.6,2314.7,4.87307]
[1625444173328,14.1133,2316.6,2314.8,15.567587]
[1625444173427,14.1133,2316.6,2315.5,43.54]
[1625444173528,14.1133,2316.6,2315.5,46.6008]
[1625444173730,4.759,2316.7,2315.5,46.6008]
[1625444174029,5.99169877,2317.5,2315.5,46.6008]
[1625444174239,5.99169877,2317.5,2316.4,2.20527]
[1625444174240,2.20527,2316.5,2316.4,2.20527]
[1625444174329,2.20527,2316.5,2316.4,5.88937]
[1625444175052,2.20527,2316.5,2316.4,3.6841]
[1625444176258,2.20527,2316.5,2316.4,5.88937]
[1625444185343,2.20527,2316.5,2316.4,3.6841]
[1625444185497,2.20527,2316.5,2316.1,2.20527]
[1625444186307,2.20527,2316.2,2316.1,2.20527]
[1625444187911,2.20527,2316.2,2315.9,2.20527]
[1625444188264,2.20527,2316.0,2315.9,2.20527]
[1625444188763,2.20527,2316.0,2315.5,2.20527]
[1625444189376,2.20527,2316.0,2315.6,15.736627]
[1625444189468,2.20527,2316.0,2315.6,18.129627]
[1625444190320,2.20527,2316.0,2315.8,2.20527]
[1625444191271,2.20527,2316.2,2315.8,2.20527]
[1625444191372,2.20527,2316.2,2315.9,15.551376]
[1625444192324,2.20527,2316.2,2316.1,2.20527]
[1625444192623,2.20527,2316.2,2316.1,17.892529]
[1625444194341,2.20527,2316.2,2316.1,2.20527]
[1625444196982,2.20527,2316.2,2316.1,17.81778]
[1625444198485,2.20527,2316.6,2316.1,17.81778]
[1625444200341,2.20527,2316.6,2316.5,2.20527]
[1625444200442,2.20527,2316.6,2316.5,5.41727]
[1625444200643,2.20527,2316.6,2316.5,21.018822]
[1625444203367,1.0,2317.6,2316.5,21.018822]
[1625444203460,4.759,2318.3,2316.5,21.018822]
[1625444203558,1.0,2318.2,2316.5,21.018822]
[1625444203763,4.759,2318.3,2316.5,21.018822]
[1625444204361,2.20527,2317.2,2317.1,2.20527]
[1625444204665,2.20527,2317.2,2317.1,17.782984]
[1625444206171,2.20527,2317.2,2317.1,2.20527]
[1625444206469,2.20527,2317.2,2316.8,2.20527]
[1625444207072,2.20527,2317.2,2316.9,15.74353]
[1625444208427,2.20527,2317.2,2317.1,2.20527]
[1625444208824,2.20527,2317.2,2317.1,17.781002]
[1625444209675,2.20527,2317.2,2317.1,2.20527]
[1625444216491,2.20527,2317.2,2317.1,5.65107]
[1625444220001,2.20527,2317.2,2317.1,21.326699]
[1625444222953,2.20527,2317.2,2317.1,5.65107]
[1625444224655,2.20527,2317.2,2317.1,21.259976]
[1625444228221,2.20527,2317.5,2317.1,21.259976]
[1625444228571,2.20527,2317.5,2317.4,2.20527]
[1625444228871,2.20527,2317.5,2317.4,17.976781]
[1625444230426,5.759,2318.3,2317.4,17.976781]
[1625444230526,4.759,2318.3,2317.4,17.976781]
[1625444230628,2.20527,2318.2,2318.1,2.20527]
[1625444232588,4.41054,2318.2,2318.1,2.20527]
[1625444234248,4.41054,2318.2,2318.1,51.28157]
[1625444234511,4.41054,2318.2,2318.1,2.20527]
[1625444238828,4.41054,2318.2,2318.1,4.95557]
[1625444240642,5.26464,2318.2,2318.1,4.95557]
[1625444240741,4.41054,2318.2,2318.1,4.95557]
[1625444260009,4.41054,2318.2,2318.1,2.20527]
[1625444260106,4.41054,2318.2,2316.9,16.81476664]
[1625444260206,4.41054,2318.2,2316.9,15.81476664]
[1625444260407,4.41054,2318.2,2316.9,14.5469]
[1625444260509,50.3903,2318.0,2316.9,14.5469]
[1625444260706,4.41054,2318.2,2317.0,15.606313]
[1625444260807,4.41054,2318.2,2317.5,2.20527]
[1625444261309,44.7151,2317.8,2317.5,2.20527]
[1625444261509,4.41054,2318.2,2317.5,2.20527]
[1625444262625,4.41054,2318.2,2317.5,4.82587]
[1625444262826,4.41054,2318.2,2318.1,2.20527]
[1625444263428,4.41054,2318.2,2317.5,4.82587]
[1625444264780,2.20527,2318.2,2317.9,2.20527]
[1625444266836,2.20527,2318.0,2317.9,2.20527]
[1625444271094,3.05707,2318.0,2317.9,1.99157]
[1625444271199,3.05707,2318.0,2317.9,0.83077]
[1625444271599,3.05707,2318.0,2317.5,2.20527]
[1625444272351,2.20527,2318.0,2317.5,2.20527]
[1625444272912,2.20527,2317.6,2317.5,2.20527]
[1625444275570,2.20527,2317.6,2316.9,14.5469]
[1625444275670,2.20527,2317.6,2316.4,1.27020933]
[1625444275772,7.20527,2317.6,2316.4,1.27020933]
[1625444275931,7.20527,2317.6,2316.2,15.55956394]
[1625444276029,2.20527,2317.6,2316.2,15.55956394]
[1625444276234,2.20527,2317.6,2316.2,1.27076394]
[1625444276435,2.20527,2317.6,2316.0,1.27086936]
[1625444276534,5.0,2317.5,2316.0,1.27086936]
[1625444276636,47.2611,2316.6,2316.0,1.27086936]
[1625444276837,2.20527,2316.3,2315.9,1.27093327]
[1625444277439,2.20527,2316.3,2316.0,15.706135]
[1625444277541,2.20527,2316.3,2316.0,16.97732988]
[1625444277892,2.20527,2316.3,2316.0,15.706135]
[1625444278191,2.20527,2316.3,2315.9,1.27123826]
[1625444278791,2.20527,2316.3,2315.8,3.47658325]
[1625444278891,2.20527,2316.0,2315.8,3.47658325]
[1625444279695,2.20527,2316.0,2315.9,1.27159523]
[1625444280147,2.20527,2316.0,2315.8,3.47684692]
[1625444280848,2.20527,2316.0,2315.8,2.20527]
[1625444280849,2.20527,2315.9,2315.8,2.20527]
[1625444281248,2.20527,2315.9,2315.3,2.54335524]
[1625444281249,2.20527,2315.9,2315.3,1.27178049]
[1625444281454,40.6121,2315.4,2315.3,1.27178049]
[1625444281552,43.4524,2315.4,2315.3,0.43148049]
[1625444281655,43.4524,2315.4,2315.2,1.78049269]
[1625444281752,43.4524,2315.4,2314.9,1.27222959]
[1625444282657,43.4524,2315.4,2314.6,2.54445918]
[1625444282658,43.4524,2315.4,2314.8,0.62809805]
[1625444282762,43.4524,2315.4,2314.8,0.49479805]
[1625444282856,4.41054,2314.9,2314.8,0.49479805]
[1625444283159,4.41054,2314.9,2314.6,1.78121727]
[1625444284161,4.41054,2314.9,2314.7,1.78150597]
[1625444284614,4.41054,2314.9,2314.4,3.98548707]
[1625444284966,2.20527,2314.5,2314.4,3.98548707]
[1625444285266,2.20527,2314.5,2314.4,2.20527]
[1625444285663,2.20527,2314.9,2314.4,2.20527]
[1625444285766,2.20527,2314.9,2314.4,21.154441]
[1625444286115,2.20527,2314.9,2314.8,1.78041012]
[1625444286667,2.20527,2314.9,2314.7,1.77959529]
[1625444286917,2.20527,2314.8,2314.7,1.77959529]
[1625444287121,2.20527,2314.8,2314.5,1.77970878]
[1625444287419,2.20527,2314.8,2314.6,1.77982993]
[1625444287521,2.20527,2314.8,2314.6,5.42752993]
[1625444288935,2.20527,2314.8,2314.7,2.20527]
[1625444292360,2.20527,2314.8,2314.7,5.45167]
[1625444292652,2.20527,2315.3,2314.7,5.45167]
[1625444292852,2.20527,2315.3,2314.7,21.167714]
[1625444292957,4.41054,2315.3,2315.2,2.20527]
[1625444293056,4.41054,2315.3,2315.2,4.96567]
[1625444293256,4.41054,2315.3,2315.2,20.546574]
[1625444293354,1.0,2316.4,2315.2,20.546574]
[1625444293454,14.1292,2316.5,2315.2,20.546574]
[1625444294957,2.20527,2316.0,2315.7,2.20527]
[1625444296564,2.20527,2316.2,2315.8,15.783241]
[1625444296662,2.20527,2316.2,2315.8,60.066141]
[1625444297009,2.20527,2316.5,2316.1,2.20527]
[1625444297313,2.20527,2316.5,2316.2,15.626265]
[1625444298211,1.0,2317.2,2316.2,15.626265]
[1625444298309,5.6091,2317.3,2316.2,15.626265]
[1625444298960,2.20527,2317.0,2316.7,2.20527]
[1625444300613,2.20527,2317.0,2316.1,2.20527]
[1625444301315,2.20527,2317.0,2316.2,15.656466]
[1625444302971,2.20527,2316.5,2316.2,15.656466]
[1625444304476,2.20527,2316.5,2316.1,2.20527]
[1625444305077,4.99697,2316.2,2316.1,2.20527]
[1625444305490,4.99697,2316.2,2315.1,1.77652205]
[1625444305591,47.9908,2315.6,2315.1,1.77652205]
[1625444305892,47.9908,2315.6,2312.9,2.53835443]
[1625444305893,47.9908,2315.6,2314.8,1.77656619]
[1625444306192,5.99697,2316.2,2314.9,1.77648915]
[1625444306293,4.99697,2316.2,2314.9,1.77648915]
[1625444306493,4.99697,2316.2,2315.0,15.795747]
[1625444306710,46.7112,2315.6,2315.0,15.795747]
[1625444306800,49.5774,2315.6,2315.0,15.795747]
[1625444307049,2.20527,2315.1,2315.0,15.795747]
[1625444307657,2.20527,2315.1,2314.8,2.20527]
[1625444307658,2.20527,2315.1,2314.9,15.561574]
[1625444307850,2.20527,2315.1,2314.8,2.20527]
[1625444308556,2.20527,2315.1,2314.9,15.685111]
[1625444308752,2.20527,2315.1,2314.8,2.20527]
[1625444309002,2.20527,2314.9,2314.8,2.20527]
[1625444310207,2.20527,2315.1,2314.8,2.20527]
[1625444310308,2.20527,2315.1,2314.8,21.146219]
[1625444310708,2.20527,2315.1,2314.8,5.51827]
[1625444311008,2.20527,2314.9,2314.8,5.51827]
[1625444311115,2.20527,2315.1,2314.8,5.51827]
[1625444311615,2.20527,2315.1,2314.9,15.635381]
[1625444312670,2.20527,2315.1,2314.8,5.51827]
[1625444313067,2.20527,2314.9,2314.8,5.51827]
[1625444313169,2.20527,2314.9,2314.8,2.20527]
[1625444313368,2.20527,2314.9,2314.6,2.20527]
[1625444313469,41.859,2314.8,2314.6,2.20527]
[1625444313773,2.20527,2314.9,2314.6,2.20527]
[1625444314081,2.20527,2314.9,2314.6,4.79467]
[1625444314170,2.20527,2315.1,2314.6,4.79467]
[1625444315073,2.20527,2314.7,2314.6,4.79467]
[1625444316575,2.20527,2314.7,2314.6,2.20527]
[1625444319488,5.16247,2314.7,2314.6,2.20527]
[1625444320681,5.16247,2314.7,2313.5,2.77348544]
[1625444320782,5.16247,2314.7,2313.5,1.77348544]
[1625444320984,5.16247,2314.7,2313.4,1.77342432]
[1625444321283,2.20527,2313.9,2313.8,2.20527]
[1625444321383,48.17177,2313.9,2313.5,2.20527]
[1625444323085,2.20527,2313.6,2313.5,2.20527]
[1625444324336,2.20527,2313.6,2312.8,1.77199645]
[1625444324946,2.20527,2313.6,2312.6,1.77218363]
[1625444325146,4.41054,2312.7,2312.6,3.97745363]
[1625444325347,4.41054,2312.7,2312.6,2.20527]
[1625444325857,3.38621756,2312.7,2312.6,2.20527]
[1625444326607,1.0,2313.8,2312.6,2.20527]
[1625444326706,45.9665,2313.9,2312.6,5.34237]
[1625444326805,0.8548,2314.5,2312.6,21.058269]
[1625444327109,2.20527,2313.5,2313.3,2.20527]
[1625444330969,2.20527,2313.5,2312.3,1.0]
[1625444331069,2.20527,2313.5,2312.1,14.2139]
[1625444331170,2.20527,2312.9,2312.8,2.20527]
[1625444331271,44.62147,2312.9,2312.8,2.20527]
[1625444331773,2.20527,2312.9,2312.8,2.20527]
[1625444333226,4.41054,2312.9,2312.8,2.20527]
[1625444333635,52.03224,2312.9,2312.8,2.20527]
[1625444334184,55.32854,2312.9,2311.8,14.1925]
[1625444334287,55.32854,2312.9,2310.5,5.05021139]
[1625444334387,56.32854,2312.9,2311.1,13.9255]
[1625444334585,56.32854,2312.9,2311.4,0.1746341]
[1625444334698,55.32854,2312.9,2311.4,0.1746341]
[1625444334787,55.32854,2312.9,2311.2,0.17462683]
[1625444334988,55.32854,2312.9,2311.5,15.57361]
[1625444335195,2.20527,2311.7,2311.6,2.20527]
[1625444335498,5.22457,2311.7,2311.6,2.20527]
[1625444335738,47.46627,2311.7,2311.6,2.20527]
[1625444335938,47.46627,2311.7,2311.4,2.20527]
[1625444337191,2.20527,2311.5,2311.4,2.20527]
[1625444338050,2.20527,2311.5,2310.3,1.0]
[1625444338146,2.20527,2311.5,2310.2,13.6072]
[1625444338748,41.5081,2310.5,2309.7,1.0]
[1625444338850,41.5081,2310.5,2309.3,1.76563859]
[1625444339100,41.5081,2310.5,2309.4,0.17658579]
[1625444339211,41.5081,2310.5,2310.0,2.20527]
[1625444339212,2.20527,2310.4,2310.0,2.20527]
[1625444341019,1.1799321,2310.4,2310.0,2.20527]
[1625444341217,1.1799321,2310.4,2310.3,2.20527]
[1625444341316,1.1799321,2310.4,2310.3,4.84127]
[1625444341517,1.1799321,2310.4,2310.3,2.636]
[1625444342472,1.1799321,2310.4,2310.0,2.20527]
[1625444343227,2.20527,2310.1,2310.0,2.20527]
[1625444343329,5.26377,2310.1,2310.0,2.20527]
[1625444343531,5.26377,2310.1,2308.6,13.7556]
[1625444344081,5.26377,2310.1,2308.2,1.0]
[1625444344180,47.0986,2309.4,2307.8,13.8602]
[1625444344280,49.5513,2309.4,2307.8,13.8602]
[1625444344782,49.5513,2309.4,2307.9,15.769243]
[1625444345181,2.4527,2309.4,2307.8,15.745267]
[1625444345288,7.11647,2310.1,2307.8,15.745267]
[1625444345289,2.20527,2308.5,2308.4,2.20527]
[1625444345483,0.8527,2310.1,2308.4,2.20527]
[1625444345883,13.6456,2310.3,2308.4,5.83667]
[1625444346182,46.0217,2309.4,2308.4,5.83667]
[1625444346284,46.0217,2309.4,2308.5,15.815019]
[1625444346582,13.6456,2310.3,2308.5,15.815019]
[1625444347236,2.20527,2309.7,2309.4,2.20527]
[1625444349293,2.20527,2309.7,2309.6,2.20527]
[1625444349416,2.20527,2309.7,2309.6,5.59367]
[1625444349591,2.20527,2309.7,2309.6,21.227627]
[1625444349792,2.20527,2310.0,2309.6,21.227627]
[1625444350501,13.7077,2311.3,2309.6,21.227627]
[1625444350600,14.1534,2314.4,2309.6,21.227627]
[1625444350696,14.1534,2314.4,2309.7,14.5983]
[1625444350697,3.451,2313.6,2309.7,14.5983]
[1625444350896,14.3769,2313.5,2309.7,14.5983]
[1625444350996,1.0,2313.4,2309.8,15.714634]
[1625444351199,6.0,2313.4,2309.8,29.738434]
[1625444351297,2.20527,2311.5,2311.2,2.20527]
[1625444352019,2.20527,2311.5,2309.8,14.0238]
[1625444352107,5.48867,2311.5,2309.8,14.0238]
[1625444352309,5.48867,2311.5,2309.7,14.5983]
[1625444352610,5.48867,2311.5,2309.8,15.61441]
[1625444353088,5.48867,2311.5,2309.8,18.90741]
[1625444353278,2.20527,2310.6,2310.5,2.20527]
[1625444353369,2.20527,2310.6,2310.5,4.48357]
[1625444353667,1.0,2312.3,2310.5,4.48357]
[1625444353766,5.0,2312.4,2310.5,4.48357]
[1625444353870,0.858,2312.5,2310.5,4.48357]
[1625444353980,1.70043475,2315.5,2310.5,4.48357]
[1625444354169,1.1,2313.7,2310.6,15.680899]
[1625444354521,6.1,2313.4,2310.6,15.680899]
[1625444355223,6.1,2313.4,2311.3,2.20527]
[1625444355321,2.20527,2311.8,2311.3,5.70187]
[1625444355523,2.20527,2311.8,2311.4,15.611775]
[1625444355872,2.20527,2311.8,2311.3,5.70187]
[1625444355972,2.20527,2311.8,2311.3,2.20527]
[1625444356273,2.20527,2311.8,2310.5,2.2783]
[1625444356877,2.20527,2311.8,2310.6,15.632105]
[1625444357279,2.20527,2311.8,2310.8,2.20527]
[1625444357579,2.20527,2311.8,2310.9,15.666897]
[1625444357882,2.20527,2311.8,2310.8,2.20527]
[1625444358181,2.20527,2311.8,2310.9,15.742652]
[1625444361310,2.20527,2311.8,2311.6,2.20527]
[1625444361490,0.8718,2313.2,2311.6,2.20527]
[1625444361598,39.7395,2312.9,2311.6,2.20527]
[1625444361841,1.1,2313.4,2311.6,2.20527]
[1625444362300,14.3769,2313.5,2311.7,15.659573]
[1625444362743,0.87,2313.8,2311.7,15.659573]
[1625444362998,1.25172552,2315.9,2311.7,15.659573]
[1625444363100,15.0569,2314.7,2311.7,15.659573]
[1625444363293,2.20527,2313.0,2312.9,2.20527]
[1625444363394,2.20527,2313.0,2312.9,4.58547]
[1625444364147,2.20527,2313.0,2312.9,20.305281]
[1625444364449,2.20527,2313.0,2312.9,4.58547]
[1625444365849,2.20527,2313.3,2312.9,4.58547]
[1625444366049,2.20527,2313.3,2312.9,20.213411]
[1625444367303,2.20527,2313.3,2313.2,2.20527]
[1625444367604,1.0,2314.6,2313.2,17.777042]
[1625444367704,16.1569,2314.7,2313.2,17.777042]
[1625444368005,1.1,2314.7,2313.2,17.777042]
[1625444368206,1.1,2314.7,2313.2,2.20527]
[1625444368413,50.8848,2314.8,2313.2,2.20527]
[1625444368513,51.9848,2314.8,2313.2,2.20527]
[1625444368765,46.9848,2314.8,2313.2,2.20527]
[1625444368965,51.9848,2314.8,2313.2,2.20527]
[1625444369316,2.20527,2313.6,2313.5,2.20527]
[1625444369884,2.20527,2313.6,2313.2,2.20527]
[1625444369983,2.20527,2313.6,2312.2,3.2546]
[1625444370640,2.20527,2313.6,2312.3,15.678979]
[1625444370743,1.0,2314.2,2312.3,15.678979]
[1625444370853,1.0,2314.6,2312.3,15.678979]
[1625444370945,14.7807,2314.7,2312.3,15.678979]
[1625444371342,2.20527,2313.7,2313.6,2.20527]
[1625444371437,2.20527,2313.7,2313.6,5.76477]
[1625444373393,4.41054,2313.7,2313.6,5.76477]
[1625444375297,4.41054,2313.7,2313.6,3.5595]
[1625444375496,4.41054,2313.7,2313.4,2.20527]
[1625444375797,5.28674,2313.7,2313.4,2.20527]
[1625444376197,4.41054,2313.7,2312.2,3.2546]
[1625444376300,4.41054,2313.7,2310.6,46.1299]
[1625444376399,4.41054,2313.7,2310.7,1.0]
[1625444376507,4.41054,2313.7,2311.1,0.8637]
[1625444376706,4.41054,2313.7,2310.7,1.0]
[1625444376906,4.41054,2313.7,2311.6,15.751792]
[1625444377258,5.26254,2313.7,2311.6,15.751792]
[1625444377472,5.26254,2313.7,2312.9,2.20527]
[1625444377473,2.20527,2313.2,2312.9,2.20527]
[1625444377569,4.78467,2313.2,2312.9,2.20527]
[1625444377970,4.78467,2313.2,2311.5,29.3215]
[1625444378071,4.78467,2313.2,2311.5,28.3215]
[1625444378621,4.78467,2313.2,2311.6,15.719599]
[1625444379375,2.20527,2312.3,2312.0,2.20527]
[1625444379976,1.70527,2312.3,2312.0,2.20527]
[1625444381339,44.3094,2313.5,2312.0,2.20527]
[1625444381436,2.20527,2312.7,2312.6,2.20527]
[1625444381737,2.20527,2312.7,2312.0,2.20527]
[1625444383438,4.41054,2312.1,2312.0,2.20527]
[1625444384489,4.41054,2312.1,2310.8,13.6921]
[1625444384710,4.41054,2312.1,2309.4,1.0]
[1625444385058,4.41054,2312.1,2309.5,14.4727]
[1625444385159,4.41054,2312.1,2310.7,15.83099]
[1625444385466,2.6989,2312.6,2311.3,2.20527]
[1625444385467,2.20527,2311.4,2311.3,2.20527]
[1625444386958,2.20527,2311.4,2311.3,2.01017]
[1625444387264,2.20527,2311.4,2311.3,0.11717]
[1625444387416,2.20527,2311.4,2310.3,2.20527]
[1625444387517,2.20527,2311.4,2310.1,2.20527]
[1625444388324,7.20527,2311.4,2310.1,2.20527]
[1625444389025,37.903,2310.7,2310.1,2.20527]
[1625444389125,41.6546,2310.7,2310.1,2.20527]
[1625444389425,4.41054,2310.2,2310.1,2.20527]
[1625444390128,4.41054,2310.2,2309.7,2.20527]
[1625444390931,4.41054,2310.2,2309.8,15.825516]
[1625444391031,4.41054,2310.2,2309.8,19.228916]
[1625444393687,1.0,2311.5,2309.8,19.228916]
[1625444393790,16.0493,2311.7,2309.8,19.228916]
[1625444394041,21.0493,2311.7,2309.8,19.228916]
[1625444394742,16.0493,2311.7,2309.8,19.228916]
[1625444395556,2.20527,2310.6,2310.3,2.20527]
[1625444395642,2.20527,2310.6,2310.3,4.97407]
[1625444396242,2.20527,2310.6,2310.4,15.602424]